lending/lending_fUSD_20260124
["ID","MTS","AMOUNT","RATE_DAILY","PERIOD"]
[403161904,1769221842819,-150.0,0.00017178,2]
[403161905,1769221842830,-150.0,0.00017178,2]
[403161906,1769221842842,-420.0,0.00017209,2]
[403161907,1769221842853,-484.52,0.00017241,2]
[403161908,1769221842864,-158.44070523,0.00017288,2]
[403161909,1769221842876,-1680.0,0.00017296,2]
[403161910,1769221842887,-400.0,0.00017335,2]
[403161911,1769221842899,-420.0,0.0001737,2]
[403161912,1769221842910,-179.89,0.00017378,2]
[403161913,1769221842921,-558.65,0.00017378,2]
[403161914,1769221842932,-468.53,0.00017378,2]
[403161915,1769221842943,-172.14,0.00017378,2]
[403161916,1769221842954,-2315.37103419,0.00017397,2]
[403161917,1769221842965,-420.0,0.00017406,2]
[403161918,1769221842976,-420.0,0.00017476,2]
[403161919,1769221842988,-166.66,0.0001749,2]
[403161920,1769221842999,-153.4,0.00017505,2]
[403161921,1769221843009,-860.54906148,0.00017516,2]
[403161922,1769221843021,-2000.0,0.00017516,2]
[403161923,1769221843032,-2000.0,0.00017516,2]
[403161924,1769221843043,-2000.0,0.00017516,2]
[403161925,1769221843054,-2000.0,0.00017516,2]
[403161926,1769221843065,-2000.0,0.00017516,2]
[403161927,1769221843076,-2000.0,0.00017516,2]
[403161928,1769221843088,-200.0,0.00017552,2]
[403161929,1769221843098,-1254.0,0.00017558,2]
[403161930,1769221843110,-500.0,0.00017562,2]
[403161931,1769221843122,-150.0,0.000176,2]
[403161933,1769221843133,-1000.0,0.000176,2]
[403161935,1769221843145,-597.51194044,0.0001764,2]
[403161937,1769221843156,-181.08010149,0.00017647,2]
[403161939,1769221843165,-885.86649465,0.00017647,2]
[403161941,1769221843173,-2315.37103419,0.00017649,2]
[403161942,1769221843183,-1254.0,0.00017678,2]
[403161943,1769221843192,-1254.0,0.00017688,2]
[403161945,1769221843200,-150.0,0.00017699,2]
[403161946,1769221843209,-153.44078669,0.00017699,2]
[403161948,1769221843218,-1000.0,0.000177,2]
[403161949,1769221843227,-1254.0,0.0001776,2]
[403161950,1769221843236,-1000.0,0.00017799,2]
[403161951,1769221843245,-254.30063806,0.00017808,2]
[403161952,1769221843254,-195.96455,0.0001782,2]
[403161953,1769221843263,-195.96455,0.0001782,2]
[403161954,1769221843271,-166.66,0.0001783,2]
[403161955,1769221843280,-1254.0,0.0001784,2]
[403161956,1769221843289,-420.0,0.00017849,2]
[403161957,1769221843298,-420.0,0.00017886,2]
[403161958,1769221843308,-1009.0,0.000179,2]
[403161959,1769221843317,-2315.37103419,0.000179,2]
[403161960,1769221843326,-1344.0,0.000179,2]
[403161961,1769221843335,-420.0,0.00017904,2]
[403161962,1769221843344,-160.03828545,0.00017973,2]
[403161963,1769221843353,-500.0,0.00017973,2]
[403161964,1769221843362,-247.26659948,0.00017973,2]
[403161965,1769221843371,-501.2562389,0.00017973,2]
[403161966,1769221843381,-502.21809292,0.00017973,2]
[403161967,1769221843390,-500.0,0.00017973,2]
[403161968,1769221843399,-500.0,0.00017973,2]
[403161969,1769221843409,-574.71375417,0.00017973,2]
[403161970,1769221843418,-500.0,0.00017973,2]
[403161971,1769221843427,-500.0,0.00017973,2]
[403161972,1769221843436,-501.90117021,0.00017973,2]
[403161973,1769221843445,-500.0,0.00017973,2]
[403161974,1769221843455,-500.0,0.00017973,2]
[403161975,1769221843466,-500.0,0.00017973,2]
[403161976,1769221843475,-150.0,0.00017973,2]
[403161977,1769221843484,-11769.7944668,0.00017995,2]
[403161978,1769221843494,-4306.9831516,0.00017995,2]
[403161979,1769221843503,-2310.2452948,0.00017995,2]
[403161980,1769221843513,-50077.7702757,0.00017995,2]
[403161981,1769221843522,-4094.5547034,0.00017995,2]
[403161982,1769221843530,-100732.530353,0.00017995,2]
[403161983,1769221843539,-300.0,0.00017999,2]
[403161984,1769221843548,-499.99,0.00018,2]
[403161985,1769221843557,-500.0,0.00018,2]
[403161986,1769221843566,-500.0,0.00018,2]
[403161987,1769221843575,-500.0,0.00018,2]
[403161988,1769221843584,-500.0,0.00018,2]
[403161989,1769221843593,-2529617.52139188,0.00018,2]
[403161990,1769221843602,-195625.12538864,0.00018,2]
[403161991,1769221843611,-304083.8784175,0.00018,2]
[403161992,1769221843623,-500.0,0.00018,2]
[403161993,1769221843633,-500.0,0.00018,2]
[403161994,1769221843642,-500.0,0.00018,2]
[403161995,1769221843651,-500.0,0.00018,2]
[403161996,1769221843660,-500.0,0.00018,2]
[403161997,1769221843670,-500.0,0.00018,2]
[403161998,1769221843678,-500.0,0.00018,2]
[403161999,1769221843687,-294.74644974,0.00018,2]
[403162000,1769221843698,-1386598.30312726,0.00018,2]
[403162005,1769221844069,-1517.18072072,0.00018,2]
[403162006,1769221844099,-353.47176662,0.00018,2]
[403162007,1769221844109,-360.42425931,0.00018,2]
[403162008,1769221844228,-2310.24529464,0.00018,2]
[403162009,1769221844361,-639.48310484,0.00018,2]
[403162010,1769221844372,-75543.94773475,0.00018,2]
[403162015,1769221847224,-271.46575438,0.00018,2]
[403162016,1769222138920,-643.97767045,0.00015422,2]
[403162017,1769222139023,-569.46398767,0.00015422,2]
[403162018,1769222139126,-99.25434188,0.00015422,2]
[403162019,1769222139151,-162.417,0.00015422,2]
[403162021,1769222384421,157.34,0.00013015,2]
[403162028,1769223032223,-1050.157,0.00015422,2]
[403162029,1769223032233,-344.23708651,0.00015422,2]
[403162030,1769223032243,-162.41812493,0.00015422,2]
[403162031,1769223032253,-382.04438016,0.00015636,2]
[403162032,1769223032263,-291.0,0.00015636,2]
[403162033,1769223032274,-300.0,0.00015636,2]
[403162034,1769223032284,-1200.0,0.00015636,2]
[403162035,1769223032295,-1000.0,0.00015637,2]
[403162036,1769223032306,-429.1085,0.00015637,2]
[403162037,1769223032317,-7183.46906751,0.00015637,2]
[403162042,1769223033964,-320.43274814,0.00015637,2]
[403162046,1769223033995,-705.89360131,0.00015637,2]
[403162103,1769223038857,-694522.25159479,0.00015637,2]
[403162111,1769223038926,-3219.9984,0.00015637,2]
[403162204,1769223040875,-294047.95458825,0.00015637,2]
[403162205,1769223040884,-2083.83393078,0.00015637,2]
[403162206,1769223040894,-787.79532896,0.00015727,2]
[403162207,1769223040904,-250.0,0.00015737,2]
[403162208,1769223040914,-250.0,0.00015737,2]
[403162210,1769223040923,-250.0,0.00015737,2]
[403162212,1769223040933,-250.0,0.00015737,2]
[403162213,1769223040942,-250.0,0.00015737,2]
[403162214,1769223040951,-250.0,0.00015737,2]
[403162215,1769223040961,-250.0,0.00015737,2]
[403162216,1769223040971,-250.0,0.00015737,2]
[403162218,1769223040980,-250.0,0.00015737,2]
[403162219,1769223040990,-250.0,0.00015737,2]
[403162220,1769223040999,-250.0,0.00015737,2]
[403162221,1769223041008,-500.0,0.00015837,2]
[403162222,1769223041019,-1265.0,0.00015862,2]
[403162223,1769223041028,-1265.0,0.00015862,2]
[403162224,1769223041038,-1265.0,0.00015862,2]
[403162225,1769223041052,-264.46108747,0.00015873,2]
[403162226,1769223041061,-500.0,0.00015873,2]
[403162227,1769223041071,-500.0,0.00015873,2]
[403162228,1769223041080,-501.32971868,0.00015873,2]
[403162229,1769223041090,-500.0,0.00015873,2]
[403162230,1769223041100,-500.0,0.00015873,2]
[403162231,1769223041110,-500.0,0.00015873,2]
[403162232,1769223041120,-500.0,0.00015873,2]
[403162233,1769223041129,-225.21984276,0.00015873,2]
[403162234,1769223041139,-500.0,0.00015873,2]
[403162235,1769223041148,-278.24022797,0.00015873,2]
[403162236,1769223041159,-500.0,0.00015873,2]
[403162237,1769223041168,-170.17092774,0.00015873,2]
[403162238,1769223041177,-166.2984837,0.00015873,2]
[403162239,1769223041187,-500.0,0.00015873,2]
[403162240,1769223041196,-500.0,0.00015873,2]
[403162241,1769223041205,-501.22866478,0.00015873,2]
[403162242,1769223041214,-177.5178643,0.00015873,2]
[403162243,1769223041223,-173.62225723,0.00015873,2]
[403162244,1769223041233,-167.94526228,0.00015873,2]
[403162245,1769223041541,-500.0,0.00015873,2]
[403162246,1769223041559,-164.50729817,0.00015873,2]
[403162247,1769223041569,-500.59522291,0.00015873,2]
[403162248,1769223041578,-166.64412679,0.00015873,2]
[403162249,1769223041587,-500.0,0.00015873,2]
[403162250,1769223041595,-500.0,0.00015873,2]
[403162251,1769223041605,-500.0,0.00015873,2]
[403162252,1769223041614,-500.0,0.00015873,2]
[403162253,1769223041624,-502.79552946,0.00015873,2]
[403162254,1769223041633,-500.0,0.00015873,2]
[403162255,1769223041642,-500.0,0.00015873,2]
[403162256,1769223041651,-502.36094704,0.00015873,2]
[403162257,1769223041661,-500.0,0.00015873,2]
[403162258,1769223041670,-500.0,0.00015873,2]
[403162259,1769223041679,-169.48430069,0.00015873,2]
[403162260,1769223041688,-500.75682028,0.00015873,2]
[403162261,1769223041698,-489.57842878,0.00015873,2]
[403162262,1769223041707,-500.0,0.00015873,2]
[403162263,1769223041717,-217.42155575,0.00015873,2]
[403162264,1769223041726,-501.20798714,0.00015873,2]
[403162265,1769223041735,-500.87943999,0.00015873,2]
[403162266,1769223041744,-163.72504406,0.00015873,2]
[403162267,1769223041754,-500.0,0.00015873,2]
[403162268,1769223041763,-501.38956755,0.00015873,2]
[403162269,1769223041772,-500.0,0.00015873,2]
[403162270,1769223041781,-501.08182749,0.00015873,2]
[403162271,1769223041790,-500.0,0.00015873,2]
[403162272,1769223041800,-500.0,0.00015873,2]
[403162273,1769223041809,-500.0,0.00015873,2]
[403162274,1769223041818,-166.22451781,0.00015873,2]
[403162275,1769223041829,-500.0,0.00015873,2]
[403162276,1769223041838,-2662.81,0.00015888,2]
[403162277,1769223041847,-8528.71,0.00015888,2]
[403162278,1769223041859,-1843.43,0.00015888,2]
[403162279,1769223041868,-9999.99,0.00015888,2]
[403162280,1769223041877,-150.99,0.00015888,2]
[403162281,1769223041886,-2083.83393077,0.00015888,2]
[403162282,1769223041895,-151.0,0.00015958,2]
[403162283,1769223041904,-150.0,0.00016,2]
[403162284,1769223041914,-1852.42,0.00016039,2]
[403162285,1769223041924,-200.0,0.00016069,2]
[403162286,1769223041933,-2083.83393077,0.0001614,2]
[403162287,1769223041942,-150.0,0.00016148,2]
[403162288,1769223041951,-310.31,0.00016213,2]
[403162289,1769223041960,-1000.0,0.00016215,2]
[403162290,1769223041969,-3945.06,0.00016241,2]
[403162291,1769223041979,-157.34,0.00016269,2]
[403162292,1769223041987,-707.41,0.00016274,2]
[403162293,1769223041996,-2083.83393077,0.00016391,2]
[403162294,1769223042007,-502.1169915,0.00016421,2]
[403162295,1769223042017,-510.6528061,0.00016421,2]
[403162296,1769223042026,-1000.0,0.00016421,2]
[403162297,1769223042035,-505.83466941,0.00016421,2]
[403162298,1769223042047,-542.33856448,0.00016421,2]
[403162299,1769223042058,-1000.0,0.00016421,2]
[403162300,1769223042067,-544.47711737,0.00016421,2]
[403162301,1769223042076,-1000.0,0.00016421,2]
[403162302,1769223042088,-1001.01039061,0.00016421,2]
[403162303,1769223042099,-1000.0,0.00016421,2]
[403162304,1769223042109,-1006.85151747,0.00016421,2]
[403162305,1769223042119,-1000.0,0.00016421,2]
[403162306,1769223042131,-1000.0,0.00016421,2]
[403162307,1769223042140,-1000.0,0.00016421,2]
[403162308,1769223042150,-239.10627716,0.00016421,2]
[403162309,1769223042161,-1000.0,0.00016421,2]
[403162310,1769223042170,-607.15821099,0.00016421,2]
[403162311,1769223042179,-1000.0,0.00016421,2]
[403162312,1769223042188,-1000.0,0.00016421,2]
[403162313,1769223042197,-1000.0,0.00016421,2]
[403162314,1769223042206,-1000.0,0.00016421,2]
[403162315,1769223042215,-1000.0,0.00016421,2]
[403162316,1769223042225,-1000.0,0.00016421,2]
[403162317,1769223042233,-1000.0,0.00016421,2]
[403162318,1769223042247,-1000.0,0.00016421,2]
[403162319,1769223042257,-1001.55907971,0.00016421,2]
[403162320,1769223042266,-500.0,0.00016438,2]
[403162321,1769223042275,-500.0,0.00016438,2]
[403162322,1769223042284,-500.0,0.00016438,2]
[403162323,1769223042295,-500.0,0.00016438,2]
[403162324,1769223042305,-500.0,0.00016438,2]
[403162325,1769223042315,-500.0,0.00016438,2]
[403162326,1769223042325,-500.0,0.00016438,2]
[403162327,1769223042334,-500.0,0.00016438,2]
[403162328,1769223042345,-500.0,0.00016438,2]
[403162329,1769223042355,-500.0,0.00016438,2]
[403162330,1769223042365,-506.1593332,0.00016438,2]
[403162331,1769223042375,-500.0,0.00016438,2]
[403162332,1769223042385,-500.0,0.00016438,2]
[403162333,1769223042394,-500.0,0.00016438,2]
[403162334,1769223042404,-500.0,0.00016438,2]
[403162335,1769223042413,-500.0,0.00016438,2]
[403162336,1769223042422,-500.0,0.00016438,2]
[403162337,1769223042432,-500.0,0.00016438,2]
[403162338,1769223042441,-500.0,0.00016438,2]
[403162339,1769223042452,-500.0,0.00016438,2]
[403162340,1769223042462,-500.0,0.00016438,2]
[403162341,1769223042471,-500.0,0.00016438,2]
[403162342,1769223042480,-555.43399885,0.00016438,2]
[403162343,1769223042491,-500.0,0.00016438,2]
[403162344,1769223042500,-500.0,0.00016438,2]
[403162345,1769223042509,-500.0,0.00016438,2]
[403162346,1769223042518,-499.99999999,0.00016438,2]
[403162347,1769223042528,-1000.0,0.00016438,2]
[403162348,1769223042538,-151.0,0.00016438,2]
[403162349,1769223042548,-2423.4,0.00016446,2]
[403162350,1769223042557,-1841.2,0.00016491,2]
[403162351,1769223042568,-2083.83393077,0.00016643,2]
[403162352,1769223042577,-1015.13,0.00016741,2]
[403162353,1769223042588,-180.0,0.000168,2]
[403162354,1769223042599,-179.75,0.00016807,2]
[403162355,1769223042610,-295.0,0.00016814,2]
[403162356,1769223042623,-398.58,0.0001682,2]
[403162357,1769223042633,-1000.0,0.00016823,2]
[403162358,1769223042642,-2083.83393077,0.00016894,2]
[403162359,1769223042651,-1008.17510359,0.00016968,2]
[403162360,1769223042661,-1001.98561764,0.00016968,2]
[403162361,1769223042670,-1500.0,0.00016968,2]
[403162362,1769223042679,-1500.0,0.00016968,2]
[403162363,1769223042689,-502.8383324,0.00016968,2]
[403162364,1769223042698,-1500.0,0.00016968,2]
[403162365,1769223042707,-501.78473202,0.00016968,2]
[403162366,1769223042716,-504.51036534,0.00016968,2]
[403162367,1769223042725,-1500.0,0.00016968,2]
[403162368,1769223042735,-1500.0,0.00016968,2]
[403162369,1769223042744,-276.81876261,0.00016968,2]
[403162370,1769223042753,-329.96169871,0.00016968,2]
[403162371,1769223042762,-1500.0,0.00016968,2]
[403162372,1769223042771,-1500.0,0.00016968,2]
[403162373,1769223042780,-1505.53517306,0.00016968,2]
[403162374,1769223042790,-153.37934745,0.00016968,2]
[403162375,1769223042799,-845.0,0.0001704,2]
[403162376,1769223042808,-484.52,0.00017041,2]
[403162377,1769223042817,-484.52,0.00017041,2]
[403162378,1769223042826,-484.52,0.00017041,2]
[403162379,1769223042835,-484.52,0.00017041,2]
[403162380,1769223042844,-1189.0,0.0001709,2]
[403162381,1769223042853,-174.61919141,0.00017099,2]
[403162382,1769223042862,-229.66301342,0.00017099,2]
[403162383,1769223042871,-721.12765535,0.00017099,2]
[403162384,1769223042881,-262.5256687,0.00017099,2]
[403162385,1769223042890,-500.0,0.00017099,2]
[403162386,1769223042901,-500.0,0.00017099,2]
[403162387,1769223042912,-500.0,0.00017099,2]
[403162388,1769223042921,-500.0,0.00017099,2]
[403162389,1769223042930,-500.0,0.00017099,2]
[403162390,1769223042939,-373.07297732,0.00017099,2]
[403162391,1769223042948,-500.0,0.00017099,2]
[403162392,1769223042958,-578.20924308,0.00017099,2]
[403162393,1769223042967,-500.0,0.00017099,2]
[403162394,1769223042976,-500.0,0.00017099,2]
[403162395,1769223042986,-500.0,0.00017099,2]
[403162396,1769223042999,-500.0,0.00017099,2]
[403162397,1769223043008,-854.2589148,0.00017099,2]
[403162398,1769223043020,-217.15233878,0.00017099,2]
[403162399,1769223043030,-500.0,0.00017099,2]
[403162400,1769223043039,-151.0,0.00017099,2]
[403162401,1769223043051,-151.0,0.00017099,2]
[403162402,1769223043062,-151.0,0.00017099,2]
[403162403,1769223043072,-151.0,0.00017099,2]
[403162404,1769223043082,-151.0,0.00017099,2]
[403162405,1769223043092,-151.0,0.00017099,2]
[403162406,1769223043102,-151.0,0.00017099,2]
[403162407,1769223043111,-151.0,0.00017099,2]
[403162408,1769223043123,-151.0,0.00017099,2]
[403162410,1769223043133,-322.6107,0.00017099,2]
[403162411,1769223043142,-151.0,0.00017099,2]
[403162412,1769223043151,-151.0,0.00017099,2]
[403162413,1769223043161,-2468.0,0.00017099,2]
[403162414,1769223043170,-250.0,0.00017099,2]
[403162415,1769223043181,-250.0,0.00017099,2]
[403162416,1769223043191,-266.11006595,0.00017099,2]
[403162417,1769223043200,-420.0,0.00017102,2]
[403162418,1769223043209,-2334.58,0.00017106,2]
[403162419,1769223043218,-2008.38128925,0.00017113,2]
[403162420,1769223043228,-310.31,0.00017114,2]
[403162421,1769223043237,-2083.83393077,0.00017146,2]
[403162422,1769223043247,-558.65,0.00017178,2]
[403162423,1769223043257,-179.89,0.00017178,2]
[403162424,1769223043266,-172.14,0.00017178,2]
[403162425,1769223043275,-150.0,0.00017178,2]
[403162426,1769223043285,-468.53,0.00017178,2]
[403162427,1769223043294,-172.14,0.00017178,2]
[403162428,1769223043303,-558.65,0.00017178,2]
[403162429,1769223043312,-468.53,0.00017178,2]
[403162430,1769223043322,-179.89,0.00017178,2]
[403162431,1769223043331,-179.89,0.00017178,2]
[403162432,1769223043340,-558.65,0.00017178,2]
[403162433,1769223043349,-468.53,0.00017178,2]
[403162434,1769223043358,-172.14,0.00017178,2]
[403162435,1769223043368,-204.44,0.00017178,2]
[403162436,1769223043379,-179.89,0.00017178,2]
[403162437,1769223043388,-468.53,0.00017178,2]
[403162438,1769223043397,-172.14,0.00017178,2]
[403162439,1769223043406,-179.89,0.00017178,2]
[403162440,1769223043415,-468.53,0.00017178,2]
[403162441,1769223043424,-150.0,0.00017178,2]
[403162442,1769223043433,-172.14,0.00017178,2]
[403162443,1769223043442,-179.89,0.00017178,2]
[403162444,1769223043452,-344.28,0.00017178,2]
[403162445,1769223043461,-468.53,0.00017178,2]
[403162446,1769223043470,-179.89,0.00017178,2]
[403162447,1769223043479,-150.0,0.00017178,2]
[403162448,1769223043488,-468.53,0.00017178,2]
[403162449,1769223043498,-1680.0,0.00017188,2]
[403162450,1769223043507,-1315.0,0.00017274,2]
[403162451,1769223043516,-158.44070523,0.00017288,2]
[403162452,1769223043525,-1189.0,0.00017346,2]
[403162453,1769223043535,-150.0,0.00017378,2]
[403162454,1769223043544,-2083.83393077,0.00017397,2]
[403162455,1769223043553,-1000.0,0.00017431,2]
[403162456,1769223043562,-1000.0,0.00017465,2]
[403162457,1769223043571,-500.0,0.00017507,2]
[403162458,1769223043580,-2000.0,0.00017516,2]
[403162459,1769223043589,-2000.0,0.00017516,2]
[403162460,1769223043598,-2000.0,0.00017516,2]
[403162461,1769223043607,-2000.0,0.00017516,2]
[403162462,1769223043616,-2000.0,0.00017516,2]
[403162463,1769223043627,-2000.0,0.00017516,2]
[403162464,1769223043636,-2000.0,0.00017516,2]
[403162465,1769223043645,-168.1,0.00017519,2]
[403162466,1769223043654,-1000.0,0.00017545,2]
[403162467,1769223043664,-1315.0,0.00017626,2]
[403162468,1769223043674,-597.51194044,0.0001764,2]
[403162469,1769223043684,-181.08010149,0.00017647,2]
[403162470,1769223043693,-885.86649465,0.00017647,2]
[403162471,1769223043703,-2083.83393077,0.00017649,2]
[403162472,1769223043712,-1315.0,0.00017658,2]
[403162473,1769223043723,-1315.0,0.00017665,2]
[403162474,1769223043732,-150.0,0.00017699,2]
[403162475,1769223043742,-153.44078669,0.00017699,2]
[403162476,1769223043752,-1000.0,0.000177,2]
[403162477,1769223043761,-1897.55,0.00017701,2]
[403162478,1769223043772,-1000.0,0.000178,2]
[403162479,1769223043781,-254.30063806,0.00017808,2]
[403162480,1769223043791,-248.27348,0.0001782,2]
[403162481,1769223043802,-248.27349,0.0001782,2]
[403162482,1769223043812,-150.0,0.00017842,2]
[403162483,1769223043822,-200.0,0.0001789,2]
[403162484,1769223043832,-1000.0,0.000179,2]
[403162485,1769223043842,-2083.83393077,0.000179,2]
[403162486,1769223043851,-1350.0,0.000179,2]
[403162487,1769223043860,-150.0,0.00017926,2]
[403162488,1769223043869,-501.96776768,0.00017973,2]
[403162489,1769223043879,-500.34685322,0.00017973,2]
[403162490,1769223043889,-501.90117021,0.00017973,2]
[403162491,1769223043900,-500.0,0.00017973,2]
[403162492,1769223043910,-247.26659948,0.00017973,2]
[403162493,1769223043919,-502.02546222,0.00017973,2]
[403162494,1769223043928,-500.0,0.00017973,2]
[403162495,1769223043938,-150.0,0.00017973,2]
[403162496,1769223043949,-500.0,0.00017973,2]
[403162497,1769223043959,-501.68829632,0.00017973,2]
[403162498,1769223043969,-501.2562389,0.00017973,2]
[403162499,1769223043980,-178.05953076,0.00017973,2]
[403162500,1769223043989,-500.0,0.00017973,2]
[403162501,1769223043999,-500.0,0.00017973,2]
[403162502,1769223044009,-500.0,0.00017973,2]
[403162503,1769223044018,-500.43979477,0.00017973,2]
[403162504,1769223044028,-502.21809292,0.00017973,2]
[403162505,1769223044040,-500.0,0.00017973,2]
[403162506,1769223044055,-574.71375417,0.00017973,2]
[403162507,1769223044064,-500.0,0.00017973,2]
[403162508,1769223044073,-500.0,0.00017973,2]
[403162509,1769223044083,-500.0,0.00017973,2]
[403162510,1769223044092,-500.0,0.00017973,2]
[403162511,1769223044101,-150.0,0.00017973,2]
[403162512,1769223044111,-1008.959,0.00017999,2]
[403162513,1769223044121,-300.0,0.00017999,2]
[403162514,1769223044132,-155.534,0.00017999,2]
[403162515,1769223044144,-3059.8392597,0.00017999,2]
[403162516,1769223044154,-1175.4499049,0.00017999,2]
[403162517,1769223044164,-300.0,0.00017999,2]
[403162518,1769223044175,-499.99,0.00018,2]
[403162519,1769223044184,-500.0,0.00018,2]
[403162520,1769223044195,-500.0,0.00018,2]
[403162521,1769223044207,-500.0,0.00018,2]
[403162522,1769223044216,-500.0,0.00018,2]
[403162523,1769223044227,-5745733.25646862,0.00018,2]
[403162524,1769223044243,-4037.14803744,0.00018,2]
[403162526,1769223046819,-18.49278279,0.00015979,2]
[403162527,1769223047089,-132.50721721,0.00015979,2]
[403162528,1769223047099,-359.66,0.00017178,2]
[403162529,1769223047108,-297.48,0.00017178,2]
[403162530,1769223047118,-1000.0,0.0001745,2]
[403162531,1769223047127,-73.06273998,0.00017484,2]
[403162532,1769223070259,25000.0,0.00012893,3]
[403162533,1769223088734,25000.0,0.00012884,3]
[403162534,1769223108219,25000.0,0.00012875,3]
[403162535,1769223126944,25000.0,0.00012866,3]
[403162536,1769223147415,25000.0,0.00012858,3]
[403162537,1769223166114,25000.0,0.00012849,3]
[403162538,1769223184810,25000.0,0.0001284,3]
[403162539,1769223204014,25000.0,0.00012831,3]
[403162540,1769223222729,25000.0,0.00012822,3]
[403162541,1769223241417,25000.0,0.00012814,3]
[403162542,1769223344020,355.82159735,0.000226,120]
[403162543,1769223523171,-1088.30112546,0.00015636,5]
[403162544,1769223633281,25000.0,0.00012893,3]
[403162545,1769223651942,25000.0,0.00012884,3]
[403162546,1769223670648,25000.0,0.00012875,3]
[403162547,1769223804077,8261.08,0.0001237,2]
[403162548,1769224157372,-166.66,0.00014355,2]
[403162549,1769224157393,-166.66,0.00014657,2]
[403162550,1769224157412,-166.66,0.00014959,2]
[403162551,1769224157430,-1651.53,0.00015,2]
[403162552,1769224157450,-180.10092261,0.00015087,2]
[403162553,1769224157469,-500.0,0.00015187,2]
[403162554,1769224157488,-500.0,0.00015214,2]
[403162555,1769224157506,-166.66,0.00015261,2]
[403162556,1769224157525,-180.10092261,0.00015362,2]
[403162557,1769224157544,-288.31743166,0.00015437,2]
[403162558,1769224231397,-207.58,0.00015526,2]
[403162559,1769224231406,-207.58,0.00015526,2]
[403162560,1769224231415,-207.58,0.00015526,2]
[403162561,1769224231424,-207.58,0.00015526,2]
[403162562,1769224231434,-207.58,0.00015526,2]
[403162563,1769224231443,-300.0,0.00015534,2]
[403162564,1769224231452,-1200.0,0.00015534,2]
[403162565,1769224231461,-150.0,0.00015535,2]
[403162566,1769224231470,-253.55982778,0.00015535,2]
[403162567,1769224231479,-233.82304569,0.00015535,2]
[403162568,1769224231488,-500.0,0.00015535,2]
[403162569,1769224231498,-219.38941668,0.00015535,2]
[403162570,1769224231507,-500.0,0.00015535,2]
[403162571,1769224231516,-366.12408772,0.00015535,2]
[403162572,1769224231529,-2528.25461166,0.00015536,2]
[403162573,1769224231541,-36582.03915847,0.00015536,2]
[403162574,1769224231551,-36811.64101475,0.00015536,2]
[403162575,1769224231584,-2303.22682107,0.00015536,2]
[403162576,1769224231595,-1741.21936042,0.00015536,2]
[403162577,1769224231622,180.10092261,0.00015426,2]
[403162578,1769224231634,-1490.50948365,0.00015536,2]
[403162579,1769224231656,-2850.15,0.00015536,2]
[403162580,1769224231667,-1957.29663065,0.00015536,2]
[403162581,1769224231777,-1309.02105999,0.00015536,2]
[403162612,1769224237898,-933.13714092,0.00015536,2]
[403162622,1769224237984,-515.11831172,0.00015536,2]
[403162624,1769224237995,-7047.3654783,0.00015536,2]
[403162735,1769224239794,-371.68053552,0.00015536,2]
[403162736,1769224239806,-304.79799999,0.00015536,2]
[403162747,1769224243192,-729.25294462,0.00015536,2]
[403162748,1769224243223,-925.9169098,0.00015536,2]
[403162749,1769224243235,-504.51616914,0.00015536,2]
[403162750,1769224243306,-252.01901407,0.00015536,2]
[403162751,1769224243426,-872.26117996,0.00015536,2]
[403162752,1769224245608,-18814.53096333,0.00015536,2]